bitfinex-derivatives/quotes_ETHF0:USTF0_20251003
["timestamp","ask_amount","ask_price","bid_price","bid_amount"]
[1759509549409,0.6,4579.8,4579.7,6.68926]
[1759509549697,7.41e-06,4580.1,4580.0,2.24143]
[1759509549896,7.41e-06,4580.1,4580.0,2.46443]
[1759509550101,1.4103,4581.7,4581.6,0.3926]
[1759509550399,4.25590563,4581.6,4581.3,0.39262]
[1759509550601,1.4103,4581.4,4581.3,0.39262]
[1759509551097,1.41235003,4581.4,4581.3,0.39457453]
[1759509551302,0.00205003,4581.4,4581.3,0.39457453]
[1759509551497,0.00205003,4581.4,4581.3,1.69107453]
[1759509553104,1.41235003,4581.4,4581.3,0.00195453]
[1759509553396,0.00205003,4581.4,4581.3,0.39457453]
[1759509553597,0.00205003,4581.4,4581.3,1.69107453]
[1759509555905,0.00205003,4581.4,4581.3,0.39457453]
[1759509556095,9.20598723,4581.4,4581.3,0.00195453]
[1759509556403,9.20598723,4581.4,4579.9,0.76204406]
[1759509556404,1.4103,4580.9,4579.5,1.8487]
[1759509556598,0.223,4580.8,4580.5,0.39269]
[1759509556792,4.4269372,4580.8,4580.7,0.39267]
[1759509556998,1.6333,4580.8,4580.4,0.39269]
[1759509557200,1.6333,4580.8,4580.3,0.39271]
[1759509557405,1.9718,4580.5,4580.4,0.3927]
[1759509557605,1.6333,4580.5,4580.4,0.3927]
[1759509557805,4.26909451,4580.5,4580.4,0.3927]
[1759509558000,1.4103,4580.4,4580.3,0.00209701]
[1759509558403,2.81390707,4580.4,4580.3,0.00209701]
[1759509558610,1.4103,4580.4,4580.3,0.39480701]
[1759509558911,0.223,4580.6,4580.5,0.39269]
[1759509559204,0.223,4581.2,4581.0,0.39265]
[1759509559405,0.22505003,4581.4,4581.2,1.68913]
[1759509560001,0.00205003,4581.4,4581.2,0.39263]
[1759509560202,0.00205003,4581.4,4581.2,1.68913]
[1759509560409,1.4103,4581.3,4581.2,0.39263]
[1759509560611,0.00205003,4581.4,4581.2,0.39263]
[1759509560811,0.00205003,4581.4,4581.3,1.2965]
[1759509561610,1.4103,4581.3,4580.4,0.98176]
[1759509562117,2.8258245,4581.2,4580.5,0.98173]
[1759509562421,4.2361245,4581.2,4581.1,0.39264]
[1759509562812,1.4103,4581.2,4581.1,0.39264]
[1759509563012,4.25591578,4581.2,4580.9,0.39265]
[1759509563216,1.4103,4581.1,4581.0,0.39264]
[1759509563722,4.5360407,4581.1,4581.0,0.39264]
[1759509565023,2.9027407,4581.1,4580.9,0.39265]
[1759509565226,2.1948,4581.0,4580.9,0.39265]
[1759509566731,1.6333,4581.0,4580.9,0.39265]
[1759509566923,1.4103,4581.0,4580.9,0.39265]
[1759509567223,1.6333,4581.0,4580.9,0.39265]
[1759509567826,1.7103,4581.0,4580.9,0.39265]
[1759509568020,4.51892556,4581.0,4580.9,0.39266]
[1759509568224,4.74192556,4581.0,4580.9,0.39266]
[1759509569026,1.382,4580.9,4580.7,0.39267]
[1759509569226,3.86972556,4581.0,4580.8,0.39266]
[1759509569530,1.382,4580.9,4580.8,0.39266]
[1759509569823,0.223,4580.9,4580.8,1.67036]
[1759509570026,1.605,4580.9,4580.8,1.2777]
[1759509570222,1.605,4580.9,4580.7,0.39267]
[1759509570223,1.382,4580.8,4580.7,0.39267]
[1759509571421,0.223,4580.9,4580.7,1.67037]
[1759509571629,0.3,4581.0,4580.9,1.67036]
[1759509574129,0.3,4581.0,4580.9,2.24189304]
[1759509575326,0.3,4581.0,4580.9,1.2777]
[1759509575530,1.5562,4581.0,4580.9,1.2777]
[1759509575735,0.3,4581.0,4580.9,1.2777]
[1759509576935,0.3,4581.0,4580.6,1.94863304]
[1759509577133,1.2562,4580.9,4580.7,0.57153304]
[1759509577440,1.2562,4580.9,4580.8,1.3771]
[1759509577637,0.3,4581.0,4580.6,0.57153304]
[1759509577835,0.00205003,4581.4,4581.3,0.39262]
[1759509578136,0.00205003,4581.4,4581.3,1.76972]
[1759509578336,0.00205003,4581.4,4581.3,7.53176406]
[1759509578540,0.00205003,4581.4,4581.3,7.53180551]
[1759509578732,0.00205003,4581.4,4581.3,6.76972]
[1759509578932,0.00205003,4581.4,4581.3,7.53178485]
[1759509579129,0.3,4583.2,4581.3,7.53178485]
[1759509579130,0.3,4583.2,4583.1,1.3771]
[1759509580238,0.30244058,4583.2,4583.1,1.3771]
[1759509582928,5.8e-07,4583.2,4583.1,3.11095737]
[1759509583133,5.8e-07,4583.2,4583.1,1.3771]
[1759509583633,1.2562,4584.6,4583.6,0.98107]
[1759509583835,1.2562,4584.6,4583.7,1.3771]
[1759509584036,1.2562,4584.6,4584.4,1.76945]
[1759509584037,2.81986352,4584.5,4584.4,1.76945]
[1759509584231,1.30086049,4585.2,4584.6,0.39233]
[1759509584435,1.30086049,4585.2,4584.4,1.3771]
[1759509584631,1.2562,4584.8,4584.5,0.39234]
[1759509584840,1.2562,4584.8,4584.6,1.76944]
[1759509585038,1.2562,4584.8,4584.7,1.3771]
[1759509586230,0.04651373,4585.2,4585.1,1.7694]
[1759509586430,1.30271373,4585.2,4584.6,1.3771]
[1759509586636,1.2562,4585.1,4585.0,0.3923]
[1759509587238,1.2562,4585.1,4584.4,0.00230555]
[1759509587239,0.5065,4585.0,4584.4,0.00230555]
[1759509587639,2.78682804,4584.9,4584.5,0.39234]
[1759509587837,1.2562,4584.8,4584.7,0.39233]
[1759509588035,1.2562,4584.8,4584.4,1.37940555]
[1759509588241,1.2562,4584.9,4584.4,1.37940555]
[1759509588438,1.2562,4584.9,4584.4,0.00230555]
[1759509588635,2.83252942,4584.9,4584.4,0.00230555]
[1759509588840,1.2562,4584.8,4584.4,0.39465555]
[1759509589141,1.2562,4584.9,4584.5,0.39235]
[1759509589342,1.2562,4584.9,4584.8,0.39232]
[1759509589540,1.2562,4584.9,4584.8,1.76942]
[1759509589736,1.52571373,4585.2,4584.9,0.39231]
[1759509589942,1.2562,4585.1,4585.0,0.3923]
[1759509590236,1.2562,4585.1,4584.8,0.39232]
[1759509590237,4.0581056,4585.1,4584.8,0.39232]
[1759509590436,0.04651373,4585.2,4584.9,1.3771]
[1759509590637,0.04651373,4585.2,4584.6,0.39234]
[1759509590941,0.5065,4585.0,4584.4,0.00230555]
[1759509591245,1.2562,4584.9,4584.5,0.39235]
[1759509591643,0.5065,4585.0,4584.5,0.39235]
[1759509591845,0.5065,4585.0,4584.7,0.39233]
[1759509592037,1.2562,4584.9,4584.8,0.39232]
[1759509592239,1.2562,4584.9,4584.8,1.76942]
[1759509592848,1.2562,4584.9,4584.8,1.3771]
[1759509593043,1.2562,4585.1,4584.4,0.00230555]
[1759509593244,1.2562,4584.8,4584.4,0.00230555]
[1759509593438,1.7627,4584.5,4584.4,0.00230555]
[1759509593848,1.2562,4584.7,4584.5,0.39235]
[1759509594046,0.5065,4584.5,4584.4,0.00230555]
[1759509594245,1.7627,4584.5,4584.4,0.00230555]
[1759509596037,1.2562,4584.5,4584.4,0.00230555]
[1759509596241,1.2562,4584.5,4584.4,1.37940555]
[1759509596657,1.2562,4584.5,4584.4,0.00230555]
[1759509597644,4.65859401,4584.5,4584.4,0.00230555]
[1759509598142,4.88159401,4584.5,4584.4,0.00230555]
[1759509598540,1.7627,4584.5,4584.4,0.39466555]
[1759509598742,1.7627,4584.5,4584.4,0.00230555]
[1759509598943,1.2562,4584.5,4584.4,1.37940555]
[1759509599144,1.2562,4584.9,4584.4,1.37940555]
[1759509599348,1.2562,4584.9,4584.8,0.39232]
[1759509599647,4.08710897,4584.9,4584.8,0.39232]
[1759509599848,1.2562,4584.9,4584.7,3.2078]
[1759509600043,1.2562,4584.9,4584.7,3.60013]
[1759509600345,0.39232,4584.9,4584.7,3.2078]
[1759509600550,0.5065,4585.0,4584.4,0.00230555]
[1759509600551,1.7627,4584.5,4584.4,0.00230555]
[1759509600944,6.9857,4584.5,4584.4,0.00230555]
[1759509601247,9.79003415,4584.5,4584.4,0.00230555]
[1759509601652,9.56703415,4584.5,4584.4,0.00230555]
[1759509601850,9.79003415,4584.5,4584.4,0.00230555]
[1759509602052,1.2562,4584.5,4584.4,1.34510555]
[1759509602348,10.26858987,4584.5,4584.4,0.00230555]
[1759509602648,0.39245,4583.3,4583.1,3.2078]
[1759509602849,1.4956,4583.2,4583.1,3.2078]
[1759509603053,4.36943987,4583.2,4583.1,3.2078]
[1759509603349,1.4956,4583.2,4583.1,3.2078]
[1759509603554,4.38897343,4583.2,4583.1,0.00209649]
[1759509604146,3.2078,4584.3,4583.6,1.3428]
[1759509604350,0.223,4584.4,4584.0,1.8664]
[1759509604551,3.01400467,4584.4,4584.3,1.3428]
[1759509604752,0.223,4584.8,4584.6,0.39234]
[1759509605051,0.223,4584.8,4584.0,0.5236]
[1759509605245,1.31911373,4585.2,4584.6,0.39234]
[1759509605446,1.2726,4584.8,4584.6,0.39234]
[1759509605849,1.2726,4584.8,4584.5,3.2078]
[1759509606043,0.523,4584.9,4584.5,3.2078]
[1759509606245,1.2726,4584.6,4584.5,3.2078]
[1759509606446,0.39236,4584.4,4583.6,0.39242]
[1759509606648,1.4956,4584.3,4583.5,3.7314]
[1759509606845,4.29497864,4584.3,4583.6,0.39242]
[1759509607048,1.4956,4584.3,4583.5,3.7314]
[1759509607249,2.84690385,4584.2,4583.5,3.7314]
[1759509607457,2.84690385,4584.2,4584.1,4.5506]
[1759509607659,0.223,4584.4,4584.1,4.94298]
[1759509607851,1.2726,4584.3,4584.1,3.60018]
[1759509608155,1.2726,4584.5,4584.2,1.3428]
[1759509608357,1.2726,4584.5,4584.4,0.39236]
[1759509608554,0.223,4584.5,4584.2,1.73517]
[1759509608754,1.2726,4584.4,4584.2,1.3428]
[1759509608947,0.223,4584.5,4584.2,1.3428]
[1759509609146,1.2726,4584.4,4584.2,0.39237]
[1759509609350,0.223,4584.5,4584.1,3.2078]
[1759509609561,1.2726,4584.4,4584.1,3.2078]
[1759509609860,0.3,4584.9,4584.1,3.2078]
[1759509610064,1.4956,4584.8,4584.1,3.60018]
[1759509610257,1.4956,4584.8,4584.4,1.3428]
[1759509610258,1.2726,4584.6,4584.4,1.3428]
[1759509610458,0.223,4584.7,4584.4,1.3428]
[1759509610658,0.223,4584.7,4584.2,0.39238]
[1759509610855,0.3,4584.9,4584.2,1.73518]
[1759509611161,1.2726,4584.5,4584.2,1.73518]
[1759509611456,1.2726,4584.5,4584.3,0.39236]
[1759509611653,1.2726,4584.5,4584.3,1.73516]
[1759509612657,1.2726,4584.4,4584.1,3.60018]
[1759509612857,1.2726,4584.4,4584.2,1.3428]
[1759509613053,1.2726,4584.4,4584.1,3.2078]
[1759509613252,1.2726,4584.4,4584.2,1.3428]
[1759509613457,1.2726,4584.4,4584.3,1.3428]
[1759509613953,1.2726,4584.4,4583.5,2.48955145]
[1759509613954,2.7800945,4584.3,4583.5,3.2078]
[1759509614162,2.7800945,4584.4,4584.1,1.3428]
[1759509614354,0.223,4584.6,4584.0,3.7314]
[1759509614554,0.223,4584.6,4584.5,4.5506]
[1759509615260,2.89098688,4584.7,4584.6,1.73514]
[1759509615454,4.38658688,4584.7,4584.6,1.73514]
[1759509615863,1.4956,4584.7,4584.6,1.73514]
[1759509616057,4.37245814,4584.7,4584.6,1.73514]
[1759509616558,1.2726,4584.6,4584.5,3.2078]
[1759509617065,4.07754576,4584.6,4584.5,3.2078]
[1759509617254,9.07754576,4584.6,4584.5,3.2078]
[1759509617457,1.7958,4584.0,4583.9,3.2078]
[1759509617660,2.0188,4584.0,4583.9,3.2078]
[1759509617860,4.89436695,4584.0,4583.9,3.2078]
[1759509618959,4.67136695,4584.0,4583.9,3.2078]
[1759509619259,0.5232,4584.5,4583.9,3.2078]
[1759509619464,0.223,4584.4,4584.2,1.3428]
[1759509619660,1.2726,4584.3,4584.2,1.3428]
[1759509619861,0.5232,4584.0,4583.9,3.2078]
[1759509620163,1.2726,4583.4,4583.1,0.00209649]
[1759509620462,4.28014357,4583.3,4583.1,0.00209649]
[1759509620664,3.00754357,4583.3,4583.1,0.00209649]
[1759509620865,1.2726,4583.2,4583.1,0.00209649]
[1759509621062,4.05714357,4583.2,4583.1,1.34489649]
[1759509621373,0.223,4583.2,4583.1,1.34489649]
[1759509621862,0.223,4583.2,4583.1,1.73736649]
[1759509622060,1.2726,4583.9,4583.5,1.73523]
[1759509622366,2.78079105,4583.7,4583.6,4.5506]
[1759509622561,4.05339105,4583.7,4583.6,4.5506]
[1759509622761,1.4956,4583.7,4583.6,4.5506]
[1759509623067,4.27639105,4583.7,4583.6,3.2078]
[1759509623567,4.27639105,4583.7,4583.6,4.5506]
[1759509623959,1.2726,4584.6,4584.5,1.3428]
[1759509624157,0.17910812,4584.8,4584.7,1.3428]
[1759509624464,0.3,4584.9,4584.8,1.73512]
[1759509627260,4.33873365,4584.9,4584.7,3.2078]
[1759509627461,4.33873365,4584.9,4584.7,4.4376]
[1759509628071,1.4916,4584.8,4584.7,3.2078]
[1759509628564,0.3,4584.9,4584.7,4.82993]
[1759509628759,0.3,4584.9,4584.7,3.60013]
[1759509628956,0.3,4584.9,4584.8,1.2298]
[1759509629565,0.3,4584.9,4584.8,6.4528]
[1759509630465,0.3,4584.9,4584.8,1.2298]
[1759509632169,1.2686,4586.0,4584.8,1.2298]
[1759509632170,3.73e-06,4585.2,4585.1,0.3923]
[1759509632370,3.73e-06,4585.2,4585.1,1.8446]
[1759509632672,3.73e-06,4585.2,4585.1,6.8446]
[1759509632872,0.036,4586.3,4586.2,0.3922]
[1759509633072,0.036,4586.3,4586.2,4.8293]
[1759509633671,0.5232,4587.0,4586.6,0.39216]
[1759509633870,1.2411,4586.7,4586.6,0.39477336]
[1759509634276,0.3016853,4586.9,4586.8,0.39215]
[1759509634571,1.5427853,4586.9,4586.8,1.62145]
[1759509634765,1.5427853,4586.9,4586.8,0.39215]
[1759509635172,0.3016853,4586.9,4586.8,1.62145]
[1759509636372,1.2411,4586.8,4586.7,3.59996]
[1759509636678,4.13865063,4586.8,4586.7,3.2078]
[1759509637070,4.13865063,4586.8,4586.7,3.59996]
[1759509637676,4.13865063,4586.8,4586.7,4.82926]
[1759509637677,3.12055063,4586.8,4586.7,4.82926]
[1759509637870,0.5246853,4586.9,4586.8,1.2293]
[1759509638073,0.3016853,4586.9,4586.8,1.2293]
[1759509638378,0.5246853,4586.9,4586.8,1.2293]
[1759509638673,0.3016853,4586.9,4586.8,1.2293]
[1759509641080,5.3e-06,4586.9,4586.8,1.2293]
[1759509641375,0.39203,4588.3,4586.8,1.2293]
[1759509641376,0.022,4587.9,4587.5,0.5283]
[1759509641576,0.022,4587.9,4587.8,4.82917]
[1759509641877,1.2631,4587.9,4587.8,3.59987]
[1759509642269,4.11077917,4587.9,4587.8,3.2078]
[1759509642576,4.11265946,4587.9,4587.8,3.2078]
[1759509642879,7.87155946,4587.9,4587.3,3.2078]
[1759509643081,1.2411,4587.4,4587.3,3.2078]
[1759509643274,1.2411,4587.4,4586.9,0.39214]
[1759509643575,1.2411,4587.2,4587.1,0.39212]
[1759509643971,1.2411,4587.1,4587.0,0.39213]
[1759509644376,4.10078805,4587.1,4587.0,0.39213]
[1759509645179,4.32378805,4587.1,4587.0,0.39213]
[1759509645479,3.08268805,4587.1,4587.0,4.82923]
[1759509646177,0.02388029,4587.9,4587.5,1.2293]
[1759509646377,0.02388029,4587.9,4587.6,0.39208]
[1759509646378,0.223,4587.8,4587.6,0.39208]
[1759509646873,1.2411,4587.6,4587.5,0.39209]
[1759509647271,1.2411,4587.6,4587.1,0.39212]
[1759509647272,1.2411,4587.4,4587.1,0.39212]
[1759509647471,0.223,4587.3,4587.2,0.39211]
[1759509647775,1.2411,4587.2,4587.1,0.39212]
[1759509647975,0.223,4587.3,4587.0,3.59993]
[1759509648175,0.223,4587.3,4586.6,0.00261336]
[1759509648176,1.2411,4587.1,4586.6,0.00261336]
[1759509648486,2.87095566,4587.0,4586.8,0.39215]
[1759509648675,0.39216,4586.8,4586.6,0.00261336]
[1759509648981,4.33505566,4586.7,4586.6,0.00261336]
[1759509649277,4.11205566,4586.7,4586.6,0.00261336]
[1759509649776,4.11205566,4586.7,4585.4,3.2078]
[1759509649777,0.5353,4586.0,4585.4,3.2078]
[1759509649981,1.2411,4585.8,4585.5,0.39226]
[1759509650179,0.223,4585.9,4585.4,3.2078]
[1759509650180,3.11452168,4585.9,4585.4,3.2078]
[1759509650486,2.16867,4585.5,4584.9,0.39231]
[1759509650779,2.88722562,4585.8,4585.7,1.2293]
[1759509650984,0.223,4585.8,4585.7,1.2293]
[1759509651170,1.4641,4585.8,4585.7,0.39225]
[1759509651370,4.35132562,4585.8,4585.7,0.39225]
[1759509651575,1.2411,4585.7,4585.6,0.39225]
[1759509651878,4.01146595,4585.7,4585.6,0.39225]
[1759509652380,0.5353,4585.5,4584.9,0.00164378]
[1759509652577,0.5353,4585.0,4584.9,0.00164378]
[1759509652772,1.9994,4585.0,4584.9,0.00164378]
[1759509652974,1.2411,4584.8,4584.6,0.39234]
[1759509653177,1.2411,4584.8,4584.7,0.39232]
[1759509653377,1.4641,4584.8,4584.7,0.39232]
[1759509653673,3.04689645,4584.8,4584.3,3.2078]
[1759509653873,4.4489,4584.7,4583.9,1.2293]
[1759509654078,4.4489,4584.7,4583.7,3.2078]
[1759509654079,0.49595149,4584.3,4583.8,1.2293]
[1759509654279,0.223,4584.2,4583.8,1.2293]
[1759509654474,1.2411,4584.1,4583.3,1.2293]
[1759509654680,1.2411,4584.1,4582.7,3.7799514]
[1759509654681,1.2411,4583.5,4582.7,4.4371]
[1759509654875,0.223,4583.4,4582.7,4.4371]
[1759509655083,1.2411,4583.3,4583.0,0.39247]
[1759509655287,3.08455455,4583.4,4583.3,0.39245]
[1759509655583,1.2411,4583.1,4583.0,0.39248]
[1759509655884,4.03567208,4583.1,4583.0,1.2293]
[1759509656181,7.79457208,4583.1,4582.7,2.71357953]
[1759509656381,7.79457208,4583.1,4582.7,0.39423102]
[1759509656382,0.223,4583.0,4582.7,0.39423102]
[1759509656679,2.77926383,4582.9,4582.7,0.00173102]
[1759509656884,1.2411,4582.8,4582.7,0.00173102]
[1759509657182,4.02036383,4582.8,4582.7,0.00173102]
[1759509660184,0.28826898,4582.7,4582.1,0.39255]
[1759509660377,0.28826898,4582.7,4582.0,1.7576]
[1759509660586,2.87256886,4582.6,4582.5,2.15011]
[1759509660883,0.28826898,4582.7,4582.6,1.2293]
[1759509661088,1.2411,4584.4,4583.3,1.62175]
[1759509661292,0.223,4583.8,4583.3,4.83230709]
[1759509661478,4.4489,4584.8,4583.6,0.98107]
[1759509661682,4.4489,4584.8,4583.5,0.5283]
[1759509661683,0.223,4584.7,4584.0,0.5283]
[1759509661881,2.85104039,4584.7,4584.4,1.2293]
[1759509662077,2.85104039,4584.7,4584.5,0.39235]
[1759509662277,2.85104039,4584.7,4584.6,1.3176]
[1759509662480,3.07592992,4584.7,4584.6,1.3176]
[1759509662685,3.07592992,4584.7,4584.1,1.3176]
[1759509662981,2.85292992,4584.7,4584.5,0.52]
[1759509663181,0.00188953,4584.7,4584.6,6.70994]
[1759509664488,0.00188953,4584.7,4584.6,1.3176]
[1759509665387,0.17288953,4584.7,4584.6,1.70994]
[1759509665582,1.3144,4584.6,4584.3,4.5254]
[1759509665786,2.8572542,4584.7,4584.5,0.91234]
[1759509665988,0.223,4585.7,4585.5,0.52]
[1759509666185,0.223,4585.7,4585.6,1.3176]
[1759509666388,1.5374,4585.7,4585.5,3.2078]
[1759509666586,1.3144,4585.6,4585.5,3.2078]
[1759509666780,3.39634957,4585.7,4585.5,3.2078]
[1759509666987,0.22560664,4585.7,4585.6,1.3176]
[1759509667181,1.93225664,4585.7,4585.5,3.2078]
[1759509667379,1.3144,4585.6,4585.5,3.2078]
[1759509667782,2.88565388,4585.6,4585.5,4.5254]
[1759509667983,3.10865388,4585.6,4585.5,4.5254]
[1759509669391,2.88565388,4585.6,4585.5,4.5254]
[1759509669887,0.00260664,4585.7,4585.6,1.70985]
[1759509670100,4.14750099,4585.6,4585.5,3.2078]
[1759509670591,4.16764276,4585.6,4585.5,3.2078]
[1759509670787,0.39227,4585.5,4585.1,1.3176]
[1759509670992,0.223,4585.4,4584.9,3.2078]
[1759509671182,0.3923,4585.1,4584.4,4.5254]
[1759509671388,6.28404276,4585.4,4584.9,1.3176]
[1759509671389,0.223,4585.0,4584.9,1.3176]
[1759509671590,2.82571029,4585.0,4584.9,1.3176]
[1759509671793,0.223,4585.0,4584.9,4.5254]
[1759509671989,0.00260664,4585.7,4585.2,0.98073]
[1759509672288,4.14011029,4585.6,4585.1,1.3176]
[1759509672491,0.39228,4585.3,4584.9,0.39231]
[1759509672688,0.61529,4585.2,4584.5,1.3176]
[1759509672889,3.48256273,4585.2,4584.5,1.3176]
[1759509673090,1.3144,4585.1,4584.8,0.39232]
[1759509673292,1.3144,4585.1,4584.3,1.3176]
[1759509673493,0.39232,4584.9,4584.5,0.39235]
[1759509673693,1.3144,4584.7,4584.5,0.39235]
[1759509673995,2.84512322,4584.6,4584.5,0.39235]
[1759509674187,2.84512322,4584.6,4584.5,1.70995]
[1759509674388,4.15952322,4584.6,4584.5,1.70995]
[1759509674892,2.83170618,4584.7,4584.2,3.2078]
[1759509675089,1.3144,4584.3,4584.2,0.39237]
[1759509675290,0.61537,4584.3,4584.0,0.39238]
[1759509675491,0.39239,4584.1,4583.5,0.52]
[1759509675688,1.3144,4583.9,4583.7,0.39241]
[1759509675887,3.09457799,4584.0,4583.7,0.39241]
[1759509676088,4.18597799,4583.8,4583.6,1.3176]
[1759509676395,0.223,4583.7,4583.6,1.71003]
[1759509676590,0.223,4583.7,4583.6,1.3176]
[1759509676893,1.3144,4583.5,4583.3,0.00275709]
[1759509677087,1.5374,4583.4,4583.3,0.00275709]
[1759509677283,4.376914,4583.4,4583.3,0.00275709]
[1759509678589,9.376914,4583.4,4583.3,0.00275709]
[1759509678897,1.3144,4582.7,4582.6,3.2078]
[1759509679095,1.5374,4582.7,4582.6,4.5254]
[1759509679302,4.37057239,4582.7,4582.6,4.5254]
[1759509679493,0.223,4582.7,4582.6,4.02539102]
[1759509679693,0.223,4582.7,4582.6,4.02791262]
[1759509679993,4.5222,4583.8,4583.7,0.39242]
[1759509680194,0.223,4583.8,4583.7,0.39241]
[1759509680397,2.87390804,4583.8,4583.7,0.39241]
[1759509680798,4.5222,4584.3,4584.1,0.39238]
[1759509680998,1.5374,4584.2,4584.1,0.39238]
[1759509681194,4.32200608,4584.2,4584.1,0.39238]
[1759509681498,3.00760608,4584.2,4583.9,0.39239]
[1759509681899,1.3144,4584.0,4583.9,0.39239]
[1759509682294,4.39265479,4584.0,4583.9,0.39239]
[1759509682696,4.39265479,4584.0,4583.3,1.3176]
[1759509682897,4.39265479,4584.0,4583.2,3.2078]
[1759509682898,3.07825479,4584.0,4583.9,1.3176]
[1759509683292,4.39265479,4584.0,4583.9,1.3176]
[1759509683502,3.07825479,4584.0,4583.8,0.3924]
[1759509683702,1.3144,4583.9,4583.8,0.3924]
[1759509684094,1.3144,4583.9,4583.3,1.3176]
[1759509684095,1.3144,4583.8,4583.3,1.3176]
[1759509684295,2.99911475,4583.9,4583.8,0.39241]
[1759509684599,0.223,4583.9,4583.8,1.71001]
[1759509684800,3.07471119,4583.9,4583.8,1.71001]
[1759509686192,0.39243,4583.6,4583.2,3.2078]
[1759509686399,0.223,4583.5,4583.3,1.3176]
[1759509686701,4.30835808,4583.5,4583.4,1.3176]
[1759509686899,2.99395808,4583.5,4583.0,0.39247]
[1759509687103,1.2293,4583.1,4583.0,1.69037]
[1759509687295,1.4523,4583.1,4583.0,1.2979]
[1759509687493,1.2293,4583.0,4582.9,0.39248]
[1759509687896,1.4523,4583.0,4582.9,1.69038]
[1759509688095,1.2293,4582.9,4582.8,0.39249]
[1759509688294,2.79984396,4583.0,4582.9,1.2979]
[1759509688504,0.5025,4584.0,4582.7,3.2078]
[1759509688505,0.5025,4584.0,4583.4,0.39244]
[1759509688704,0.39243,4583.6,4583.5,1.69033]
[1759509688898,1.62173,4583.6,4583.5,1.69033]
[1759509689097,1.62173,4583.6,4582.9,0.98121]
[1759509689098,0.39244,4583.4,4583.2,0.39245]
[1759509689298,1.4513,4583.3,4583.2,1.69035]
[1759509689498,1.4513,4583.3,4583.2,4.89815]
[1759509689499,4.00806096,4583.3,4583.2,4.89815]
[1759509689705,3.00076096,4583.3,4583.2,4.89815]
[1759509690399,4.23006096,4583.3,4583.2,0.39245]
[1759509690601,4.23006096,4583.3,4582.7,1.2979]
[1759509690997,0.39246,4583.2,4583.0,0.39247]
[1759509691193,2.77876096,4583.3,4583.2,0.39246]
[1759509691498,0.222,4583.3,4583.2,1.69036]
[1759509691803,1.2293,4583.5,4583.4,0.39244]
[1759509692003,1.4513,4583.5,4583.4,0.39244]
[1759509692199,4.24619098,4583.5,4583.4,1.67324]
[1759509692403,0.222,4583.5,4583.4,1.67324]
[1759509692601,1.71309,4584.0,4583.9,0.3924]
[1759509692803,0.39241,4583.8,4583.7,1.67321]
[1759509693007,0.61441,4583.8,4583.7,1.67321]
[1759509693203,4.75426335,4583.8,4583.7,1.2808]
[1759509693403,4.02218335,4583.8,4582.6,3.2103216]
[1759509693602,0.98117,4583.2,4582.6,0.0025216]
[1759509693908,1.7132,4582.7,4582.6,0.0025216]
[1759509694206,7.9622178,4582.7,4582.6,0.0025216]
[1759509694705,4.7544178,4582.7,4582.6,0.0025216]
[1759509695004,4.3619178,4582.7,4582.6,0.0025216]
[1759509695995,4.3619178,4582.7,4582.6,1.2833216]
[1759509696400,4.3619178,4582.7,4582.6,0.0025216]
[1759509697501,12.5697178,4582.7,4581.6,0.5721514]
[1759509697802,3.2078,4581.9,4581.4,0.39261]
[1759509698004,1.3207,4581.3,4581.2,1.67343]
[1759509698201,1.5427,4581.3,4581.2,0.39263]
[1759509698600,1.54538394,4581.3,4581.2,0.0015376]
[1759509698906,4.44572976,4581.3,4581.2,0.0015376]
[1759509699409,0.98159,4581.2,4580.2,1.2808]
[1759509699708,0.5133,4581.0,4580.3,0.3927]
[1759509699906,0.5133,4580.5,4580.0,3.2078]
[1759509700113,1.5427,4580.4,4580.3,0.39271]
[1759509700304,0.222,4580.4,4580.3,1.67521619]
[1759509700602,1.3207,4581.2,4581.0,1.2808]
[1759509700805,1.3207,4581.7,4581.2,1.67343]
[1759509701007,0.39264,4581.1,4580.7,0.39267]
[1759509701210,1.5427,4581.0,4580.9,0.39265]
[1759509701407,6.01344003,4581.3,4581.2,0.39263]
[1759509701602,3.43248394,4581.3,4581.2,1.67343]
[1759509701908,6.31821599,4581.3,4581.2,1.67343]
[1759509702108,6.31821599,4581.3,4581.1,0.39264]
[1759509702109,1.3207,4581.2,4581.1,0.39264]
[1759509702404,3.27836205,4581.2,4580.8,0.39266]
[1759509702595,1.5427,4581.1,4580.9,0.39265]
[1759509702802,0.222,4581.1,4581.0,1.2808]
[1759509703304,1.3207,4580.9,4580.6,4.88127]
[1759509703607,1.3207,4580.7,4580.6,3.60047]
[1759509704006,0.39268,4580.6,4580.2,1.2808]
[1759509704208,1.3207,4580.6,4580.1,3.2078]
[1759509704507,1.3207,4580.6,4580.5,1.67349]
[1759509704704,1.5427,4580.6,4580.5,1.67349]
[1759509704904,4.32872902,4580.6,4580.5,1.67349]
[1759509705202,0.5133,4581.0,4580.5,1.67349]
[1759509705203,1.71335,4581.0,4580.6,0.39268]
[1759509705503,1.71335,4581.0,4580.5,1.2808]
[1759509705504,3.11801145,4580.9,4580.4,1.2808]
[1759509705706,3.11801145,4580.9,4580.1,3.2078]
[1759509705907,2.89601145,4580.9,4580.8,0.39267]
[1759509706208,3.11801145,4580.9,4580.8,1.2808]
[1759509707002,0.39269,4580.5,4580.3,0.39440619]
[1759509707301,1.3207,4580.4,4580.3,0.00170619]
[1759509707503,4.33719821,4580.4,4580.3,1.28250619]
[1759509707701,3.01649821,4580.4,4580.3,1.28250619]
[1759509707902,0.222,4580.4,4580.3,1.28250619]
[1759509708103,1.3207,4580.9,4580.8,0.39267]
[1759509708304,1.5427,4580.9,4580.8,1.67347]
[1759509708501,4.41353471,4580.9,4580.8,1.67347]
[1759509708705,4.19153471,4580.9,4580.8,0.39267]
[1759509709207,1.3207,4580.6,4580.3,1.67520619]
[1759509709409,1.3207,4580.4,4580.3,0.00170619]